Cogmind - Beta 17 @@@ ROGUE MODE // 2026.07.17 @ 22:59:58 Player: aperiodic Result: Destroyed by 76-OEF(R) with Subdweller Laser Performance ------------- Evolutions (0) 0 Regions Visited (2) 400 Robots Destroyed (23) 115 Value Destroyed (453) 453 Prototype IDs (0) 0 Alien Tech Used (0) 0 Bonus (-10) -10 TOTAL SCORE: 958 Bonus ------- Friendly Fire -10 Cogmind --------- Core Integrity 0/250 Matter 275/300 Energy 95/100 System Corruption 2% Temperature Cool (6) Movement Core (50) Location -10/Subcaves Parts ------- > --- POWER (1) -------- (None) > --- PROPULSION (2) --- (None) > --- UTILITY (2) ------ (None) > --- WEAPON (2) ------- Flail > --- INVENTORY (5) ---- Wheel Barrage Gun Battle Cannon Scrap Shield Fragment (46) Scrap Shield Fragment (44) Peak State ------------ > --- POWER ------------ Ion Engine > --- PROPULSION ------- Light Treads Light Treads > --- UTILITY ---------- Large Storage Unit Makeshift Light Armor Plating > --- WEAPON ----------- Medium Laser Flail > --- INVENTORY -------- Ion Engine Wheel Wheel Compact Wheel Improved Flight Unit Improved Flight Unit Improved Flight Unit Improved Flight Unit Medium Storage Unit EM Pulse Gun Light Assault Rifle EMP Blaster EMP Blaster Mining Laser [Rating: 13] Favorites ----------- Power Ion Engine Engine Ion Engine Propulsion Light Treads Treads Light Treads Wheel Wheel Utility Scrap Shield Device Seismic Detector Storage Large Storage Unit Protection Scrap Shield Weapon Flail Energy Gun Medium Laser Energy Cannon Subdweller Beam Cannon Ballistic Gun Barrage Gun Launcher EMP Blaster Impact Weapon Flail Build | -11 -10 -10 ------- Run | Yrd Mat Sub Slots Evolved . | . . . Power . | . . . Propulsion . | . . . Utility . | . . . Weapon . | . . . Parts Attached 23 | 9 1 13 Power 1 | 1 . . Engine 1 | 1 . . Core . | . . . Reactor . | . . . Propulsion 7 | 3 . 4 Treads 3 | . . 3 Leg . | . . . Wheel 4 | 3 . 1 Hover . | . . . Flight . | . . . Utility 7 | 2 1 4 Device 1 | 1 . . Storage 2 | 1 1 . Processor . | . . . Hackware . | . . . Protection 4 | . . 4 Artifact . | . . . Weapon 8 | 3 . 5 Energy Gun 2 | 2 . . Energy Cannon 1 | . . 1 Ballistic Gun 2 | 1 . 1 Ballistic Cannon . | . . . Launcher 2 | . . 2 Special Weapon . | . . . Impact Weapon 1 | . . 1 Slashing Weapon . | . . . Piercing Weapon . | . . . Special Melee Weapon . | . . . Unidentified Prototypes . | . . . Parts Lost 13 | . . 13 Power 1 | . . 1 Propulsion 5 | . . 5 Utility 4 | . . 4 Weapon 3 | . . 3 Highest Loss Streak 4 | . . 4 To Critical Strikes . | . . . Average Backups 6 | 4 14 6 Power . | . 1 . Propulsion 2 | 2 7 2 Utility . | . . . Weapon 3 | 1 4 3 Tool/Special . | . . . Unused Backups 11 | . . 11 Power 1 | . . 1 Propulsion 6 | . . 6 Utility 1 | . . 1 Weapon 3 | . . 3 Tool/Special . | . . . Average Slot Usage (%) 72 | . 100 70 Engine 9 | . 14 8 Treads 18 | . . 19 Wheel 4 | . 28 2 Device 3 | . 14 2 Storage 4 | . 14 3 Protection 8 | . . 9 Energy Gun 3 | . 14 3 Energy Cannon 1 | . . 2 Ballistic Gun 6 | . 14 5 Launcher 1 | . . 2 Impact Weapon 9 | . . 10 Peak Build Rating 13 | 7 9 13 Average Rating 9 | 5 8 9 On Entrance 5 | . 7 9 Avg Prop Armor Cover (%) 5 | . . 5 Naked Turns 79 | . . 79 Heaviest Build 33 | 14 29 33 Greatest Support 40 | 26 20 40 Greatest Overweight (x) 3 | . 1 3 Average Overweight (x) . | . . . Largest Inventory Capacity 15 | 8 15 15 Average Capacity 7 | 7 14 7 Most Carried 15 | 8 15 15 Average Carried 7 | 5 14 7 Final Capacity 15 | 8 15 5 Final Carried 15 | 8 15 5 Class Distribution -------------------- 100% | Mutant Dominant Class ---------------- Mutant | -10/Materials Mutant | -10/Subcaves Resources | -11 -10 -10 ----------- Run | Yrd Mat Sub Matter Collected 651 | 304 . 347 Remotely . | . . . Salvage Created 680 | 160 . 520 Parts 43 | 13 . 30 Haulers Intercepted . | . . . Recyclers Shooed 1 | 1 . . Parts Field Recycled . | . . . Retrieved Matter . | . . . Parts Self-Destructed 20 | . . 20 Prevented 2 | . . 2 Parts Restored . | . . . Kills | -11 -10 -10 ------- Run | Yrd Mat Sub Combat Hostiles Destroyed 18 | . . 18 Melee 4 | . . 4 Guns 5 | . . 5 Cannons 1 | . . 1 AOE 7 | . . 7 Classes Destroyed 7 | 2 . 5 Tunneler 4 | 4 . . Recycler 1 | 1 . . Swarmer 10 | . . 10 Grunt 1 | . . 1 Sentry 1 | . . 1 Cobbler 1 | . . 1 Subdweller 6 | . . 6 Best Kill Streak 4 | 2 . 4 Combat Bots Only 4 | . . 4 Max Kills in Single Turn 3 | 1 . 3 Gunslinging . | . . . Exploded 3 | . . 3 Melee 1 | . . 1 Uniques/NPCs Destroyed . | . . . Combat | -11 -10 -10 -------- Run | Yrd Mat Sub Hostile Shots Fired 139 | . . 139 Missed 37 | . . 37 Hits 102 | . . 102 Projectile 102 | . . 102 AOE 2 | . . 2 Critical Strikes 4 | . . 4 Part Disruptions 1 | . . 1 Damage Taken 1945 | . . 1945 Core 271 | . . 271 Absorbed by Shields . | . . . Core Remaining (%) 100 | 100 . . Volleys Fired 61 | 14 . 47 Largest 2 | 2 . 2 Hottest 80 | 70 . 80 Shots Fired 79 | 28 . 51 Gun 51 | 28 . 23 Cannon 11 | . . 11 Launcher 17 | . . 17 Special . | . . . Kinetic 32 | 14 . 18 Thermal 30 | 14 . 16 Explosive . | . . . Electromagnetic 17 | . . 17 Robot Hit Streak 9 | 5 . 9 Robot Miss Streak 5 | 2 . 5 Penetration Max . | . . . Secondary Targets . | . . . Shots Hit Robots 82 | 18 . 64 Core Hits 33 | 9 . 24 Critical Kills . | . . . Critical Parts Destroyed 4 | . . 4 Critical Strikes 9 | 1 . 8 Burn 1 | 1 . . Smash 8 | . . 8 Melee Attacks 66 | . . 66 Impact 66 | . . 66 Slashing . | . . . Piercing . | . . . Sneak Attacks 3 | . . 3 Combat Hostiles 1 | . . 1 Follow-up Attacks . | . . . Damage Inflicted 2061 | 174 . 1887 Guns 309 | 174 . 135 Cannons 219 | . . 219 Explosions 465 | . . 465 Melee 1068 | . . 1068 Ramming . | . . . Kinetic 171 | 74 . 97 Thermal 416 | 100 . 316 Explosive . | . . . Electromagnetic 406 | . . 406 Impact 1068 | . . 1068 Slashing . | . . . Piercing . | . . . Highest Corruption 2 | . . 2 Average Corruption 1 | . . 1 Corruption Purged . | . . . Corruption Blocked . | . . . Effects 20 | . . 20 Message Errors 3 | . . 3 Matter Fused 6 | . . 6 Heat Flow Errors 5 | . . 5 Energy Discharges 2 | . . 2 Parts Rejected 1 | . . 1 Data Loss (major) 2 | . . 2 Weapon Failures 1 | . . 1 Overload Shots . | . . . Overflow Damage 220 | . . 220 Projectiles . | . . . Explosions . | . . . Melee 220 | . . 220 Knockbacks 6 | . . 6 Impact 5 | . . 5 Kinetic . | . . . Secondary 1 | . . 1 Self-Inflicted Damage 95 | . . 95 Shots 8 | . . 8 Rammed . | . . . Targets Rammed . | . . . Kicked . | . . . Crushed . | . . . Highest Temperature 253 | 70 . 253 Average Temperature 58 | 28 . 115 Received Heat Transfer 198 | . . 198 Siege Activations . | . . . Martial Activations . | . . . Shielding Activations . | . . . Robots Disrupted . | . . . Combat Hostiles . | . . . Robots Corrupted 1 | . . 1 Combat Hostiles 1 | . . 1 Parts Fried 2 | . . 2 Impact Corruptions 9 | . . 9 Robots Melted . | . . . Combat Hostiles . | . . . Parts Melted . | . . . Heat Transferred 927 | 370 . 557 Parts Sabotaged . | . . . Parts Stolen . | . . . Parts Stripped . | . . . Power Chain Reactions 2 | . . 2 Alert | -11 -10 -10 ------- Run | Yrd Mat Sub Maximum Alert Level . | . . . Low Security (%) 100 | 100 100 . Level 1 . | . . . Level 2 . | . . . Level 3 . | . . . Level 4 . | . . . Level 5 . | . . . High Security . | . . . Max Security . | . . . Peak Influence 10 | 10 . . Initial . | . . . Average . | 1 . . Influence Increases 330 | 25 . 305 Destroy 0b10 Robot/C 240 | . . 240 Destroy 0b10 Robot/NC 25 | 25 . . Destroy Leader 20 | . . 20 Lose Combat Pursuer 45 | . . 45 Influence Decreases 330 | 25 . 305 Time Decay 320 | 25 . 295 Lost Part 10 | . . 10 Squads Dispatched . | . . . Investigation . | . . . Extermination . | . . . Reinforcement . | . . . Assault . | . . . Garrison . | . . . Intercept . | . . . Searches Triggered . | . . . Construction Impeded . | . . . Haulers Reinforced . | . . . Active Scanning Responses . | . . . Cargo Convoy Interrupts . | . . . Stealth | -11 -10 -10 --------- Run | Yrd Mat Sub Distress Signals . | . . . Communications Jammed . | . . . Distress Signals . | . . . Times Spotted 26 | . . 26 Peak Tracking Total 6 | . . 6 Tactical Retreats 5 | . . 5 Traps | -11 -10 -10 ------- Run | Yrd Mat Sub Traps Triggered 1 | . . 1 Indirectly . | . . . Trap Hack Attempts . | . . . Triggered . | . . . Disarmed . | . . . Reprogrammed . | . . . Reused . | . . . Traps Extracted . | . . . Installed . | . . . Triggered . | . . . Most Traps Carried 1 | . . 1 Machines | -11 -10 -10 ---------- Run | Yrd Mat Sub Machines Disabled . | . . . Max in Single Turn . | . . . Machines Repaired . | . . . Machines Dismantled . | . . . Machines Sabotaged . | . . . Overloaded Fab Kills . | . . . Hacking | -11 -10 -10 --------- Run | Yrd Mat Sub Machines Accessed 2 | . . 2 Terminals . | . . . Fabricators . | . . . Repair Stations . | . . . Recycling Units . | . . . Scanalyzers . | . . . Garrison Access . | . . . Total Hacks 3 | . . 3 Successful 3 | . . 3 Failed . | . . . Catastrophic . | . . . Database Lockouts . | . . . Manual . | . . . Terminals . | . . . Fabricators . | . . . Repair Stations . | . . . Recycling Units . | . . . Scanalyzers . | . . . Garrison Access . | . . . Terminal Hacks 3 | . . 3 Record 2 | . . 2 Open Door 1 | . . 1 Fabricator Hacks . | . . . Repair Station Hacks . | . . . Recycling Unit Hacks . | . . . Scanalyzer . | . . . Garrison Access Hacks . | . . . Unauthorized Hacks . | . . . Terminals . | . . . Fabricators . | . . . Repair Stations . | . . . Recycling Units . | . . . Scanalyzers . | . . . Garrison Access . | . . . Data Cores Recovered . | . . . Used . | . . . Hacking Detections . | . . . Full Trace Events . | . . . Feedback Events . | . . . Feedback Blocked . | . . . Robot Schematics Acquired . | . . . Robots Built . | . . . Authchips . | . . . Time . | . . . Total Robot Build Rating . | . . . Part Schematics Acquired . | . . . Parts Built . | . . . Authchips . | . . . Time . | . . . Total Part Build Rating . | . . . Part Studies Acquired . | . . . Parts Repaired . | . . . Time . | . . . Parts Recycled . | . . . Recycled Matter . | . . . Retrieved Matter . | . . . Retrieved Components . | . . . Parts Scanalyzed . | . . . Part Schematics Acquired . | . . . Parts Damaged . | . . . Bothacking | -11 -10 -10 ------------ Run | Yrd Mat Sub Used RIF Installer . | . . . Robots Hacked . | . . . Non-combat . | . . . Combat . | . . . Robot Hacks Applied . | . . . Relay Couplers Released . | . . . Fabnet Peak Effective % . | . . . Robots Rewired . | . . . Allies Hacked . | . . . Hacks Repelled . | . . . Allies | -11 -10 -10 -------- Run | Yrd Mat Sub Total Allies . | . . . Largest Group . | . . . Highest-Rated Group . | . . . Highest-Rated Ally . | . . . Total Orders . | . . . Ally Attacks . | . . . Total Damage . | . . . Kills . | . . . Allies Corrupted . | . . . Allies Melted . | . . . Intel | -11 -10 -10 ------- Run | Yrd Mat Sub Active Infowar (turns) 1104 | 12 307 785 Seismic 1104 | 12 307 785 Robot Analysis Total . | . . . Derelict Logs Recovered . | . . . Drone Launches . | . . . Drone Recoveries . | . . . Exploration | -11 -10 -10 ------------- Run | Yrd Mat Sub Turns Passed 4504 | 135 307 4062 Spaces Moved 2270 | 88 111 2071 Core 132 | 2 . 130 Treads 1440 | . . 1440 Legs . | . . . Wheels 698 | 86 111 501 Hover . | . . . Flight . | . . . Fastest Speed 50 | 50 80 50 Average Speed 137 | 82 94 141 Slowest Speed 240 | 100 95 240 Overloaded Moves . | . . . Propulsion Burnouts . | . . . Robots Hopped . | . . . Potential Cave-ins . | . . . Cave-ins Triggered . | . . . Exploration Rate (%) 23 | 4 9 58 Regions Visited 2 Branch Regions 1 Pre-discovered Areas 1 | . . 1 Known Exits Taken . | . . . Unknown Exits Taken 2 | 1 1 . Scrap Searched 4 | . . 4 Spaces Dug 11 | . . 11 Terrain Destroyed 19 | . . 19 Melee 10 | . . 10 Projectile 2 | . . 2 AOE 7 | . . 7 Terrain Rammed . | . . . Walls Destroyed . | . . . Machines Disabled . | . . . Actions | -11 -10 -10 --------- Run | Yrd Mat Sub Total 3479 | 121 314 3044 Wait 995 | 2 193 800 Move 2268 | 87 110 2071 Hop . | . . . Pick Up 27 | 9 8 10 Fast Attach 14 | 5 . 9 Attach 9 | 2 . 7 Detach 3 | . . 3 Swap 17 | 2 1 14 Drop 14 | . 2 12 Fire 61 | 14 . 47 Melee 66 | . . 66 Ram . | . . . Kick . | . . . Crush . | . . . Escape Stasis . | . . . Rewire . | . . . Trap . | . . . Miscellaneous 5 | . . 5 Route ------- -11/Scrapyard -10/Materials -10/Subcaves (discovered 3 exits: [*Mat x2] / [*Rec]) History --------- Turn | Location | Event 21 | -11/Scrapyard | Discovered new exit (range 16) 136 | -11/Scrapyard | Entered Materials 301 | -10/Materials | Build established: Mutant 403 | -10/Materials | Discovered new exit (range 6) 443 | -10/Materials | Entered Subcaves 444 | -10/Subcaves | Approached by a straggling Scientist 592 | -10/Subcaves | Discovered new exit (range 16) 624 | -10/Subcaves | A swath of the cavern ceiling suddenly collapsed 1391 | -10/Subcaves | Shifting Twisted Machinery released Mak. Light Armor Plating 1428 | -10/Subcaves | Visited Clippyterm 1433 | -10/Subcaves | Learned location of Extension (-5) 1439 | -10/Subcaves | Shifting Twisted Machinery released Scrap Shield 1516 | -10/Subcaves | Shifting Twisted Machinery released Battle Cannon 2330 | -10/Subcaves | Discovered new exit (range 5) 2766 | -10/Subcaves | Ambushed by Subdwellers from Twisted Machinery 2779 | -10/Subcaves | Shifting Twisted Machinery released Spk. Treads 2805 | -10/Subcaves | Core integrity fell below 50% 2831 | -10/Subcaves | Lost 4 parts (1n1u2w) 3129 | -10/Subcaves | Discovered new exit (range 13) 3320 | -10/Subcaves | Shifting Twisted Machinery released Battle Rifle 3426 | -10/Subcaves | Ambushed by Subdweller buried in earth 3467 | -10/Subcaves | Lost 3 parts (2n1u) 4466 | -10/Subcaves | Core integrity fell below 20% 4505 | -10/Subcaves | Destroyed by 76-OEF(R) with Subdweller Laser Last Messages --------------- 04419_ A9-GC9(u) builds Twisted Machinery. 04421_ D 3CUO|EPIDDYAJY3%#E 04421_ A9-GC9(u) builds Twisted Machinery. 04449_ System corrupted: Matter fused (-7). 04452_ AM-93T(R): "WEHOME!" 04458_ Critical hit (Destroy). 04462_ A9-GC9(u) cries out in pain. 04462_ A9-GC9(u) destroyed. 04465_ Triggered Piercing Trap. 04465_ Spikes shoot up from the floor. 04466_ Subatomizers dissect the Unknown Special Weapon. 04493_ 76-OEF(R): "LEAVESUB!" 04493_ 76-OEF(R) knocked back. 04498_ Scrap Shield destroyed. 04504_ Spk. Treads destroyed. 04505_ Destroyed Sub. Optics. 04505_ AM-93T(R) system corrupted by crushing effect. 04505_ AM-93T(R) knocked back. Map ----- +----------------------------------------------------+ | ??????????????????????????????????????????? | | ??????????????????????????????????????????? | | ??????????????????????????????????????????? | | ??????????????????????????????????????????? | | ??????????????????????????????????????????? | | ??????????????????????????????????????????? | | ??????????????????????????????????????????? | | ??????????????????????????????????????????? | | ??????????????????????????????????????????? | | ??????????????????????????????????????????? | | ??????????????????????????????????????????? | | ??????????????????????????????????????????? | | ??????????????????????????????????????????? | | ?????????????????????##???????????????????? | | ????????????????????? #??????????????????? | | ???????????????????? ???????????????????? | | ???????????????####? ???????????????????? | | ???????????????# ## ???????????????????? | | ???????????????? ????????????????????? | | ???????????????? ????????????????????? | | ???????????????? ? ##???????????????????? | | ???????????????## ? #???????????????????? | | ???????????????? # #???????????????????? | | ????????????????# # #???????????????????? | | ???????????????## # #?????????????????#### | | ???????????????#R @| #?????????????????#""" | | ???????????????# # #????????????????#""" | | ???????????????#R ###??????????????????# % | | ???????????????# #????????????????????# | | ???????????????# #????????????????????#" " | | ???????????????## ##???????????????????## # | | ???????????????# ##??????????????????#" " | | ???????????????# ###????????????????#X | | ???????????????#^ #???????????????### | | ??????????????## [#???????????????# ### | | ??????????????#^ #####???????????# ## | | ??????????????# ##"####????????# | | ??????????????## "" ^"#????????# | | ???????????????### ^ ^ |^ "" ###??????# # | | ?????????????????##### %##" ^ ######?# | | ????????????????????## #""" & ## ### | | ???????????????????## ##"^%& | | ??????????????????## ### "" | | ??????????????????# ###" " ## | | ?????????????????## ## ###" ## | | ?????????????????# ## "< ### | | ?????????????????# ####" ##" #### | | ?????????????????# ####" "#### #??? | | ?????????????????# ## " ###### # ## | | ?????????????????##?### ## # # | +----------------------------------------------------+ Best States ------------- Heat Dissipation 25 Energy Generation 10 Energy Capacity 250 Matter Stores 300 Matter Capacity 300 Sight Range 16 Terrain Scan Density 10 Armor Coverage 800 Evasion (%) 50 Recoil Reduction 2 Item Schematics ----------------- None Robot Schematics ------------------ None Fabricated ------------ Nothing Repaired ---------- Nothing Studied --------- None Alien Tech Used ----------------- None Achievements -------------- None Challenges ------------ None Game ------ Seed DefenseImpactUnit Manual? 0 Play Time 00:34:36 Cumulative 734.0 hours Start 2026.07.17 @ 21:48:23 End 2026.07.17 @ 22:59:58 Sessions 1 Manual Loads 0 Difficulty Rogue Special Mode None Game No. 253 Rogue 249 Adventurer 4 Explorer 0 Win Type - Total 21 Types 9/2/6/0/0/0/2/2/0/0 Lore% 80 Gallery% 74 Achievement% 56 Wizard Run 0 Options --------- Layout 1 ASCII 0 Keyboard 0 Movement Arrows Keybinds 0 Fullscreen 1 Font 40/SmallcapsGlow Map View 50x40 Zoom Use 0% Tactical HUD 1 Map Filters NONE Filters NONE Steam 1 RUN: 613d08a4-581c-43da-97fc-80b7ed63f79a